[Event "Grand Chess Sinquefield Cup 2023"]
[Site "Chess.com"]
[Date "2023.11.25"]
[Round "5"]
[White "Aronian, Levon"]
[Black "Firouzja, Alireza"]
[Result "1-0"]
[WhiteElo "2727"]
[BlackElo "2777"]
[ECO "E21"]
[EventDate "2023.??.??"]
[Annotator "rafael"]
[PlyCount "133"]
[Beauty "5978997136904"]
[EventType "swiss"]
[EventRounds "9"]
[EventCountry "FRA"]
[TimeControl "40/5400+30:1800+30"]

{[%evp 0,133,39,17,27,6,6,10,26,26,26,13,15,-6,-6,-6,-3,-3,19,-9,-12,-12,-4,-3,12,11,24,24,43,44,49,38,44,30,30,50,41,41,55,42,42,72,76,46,42,54,54,18,76,62,62,50,134,64,64,47,74,74,65,65,92,95,118,114,113,120,118,84,77,78,85,76,76,70,76,55,55,55,59,59,60,54,101,99,92,87,87,89,93,87,87,92,92,87,87,87,90,68,116,83,115,98,127,126,121,129,121,93,102,105,88,70,67,58,63,62,62,70,181,164,164,133,125,170,314,172,178,178,387,397,431,362,346,306,1402,1536]} 
1.d4 Nf6 2.c4 e6 3.Nc3 Bb4 4.Nf3 b6 5.Qb3 a5 ( 5...c5 {is the most popular move. A long time ago I played an interesting game with big complications right at the opening:} 6.a3 Ba5 7.Bg5 h6 8.Bh4 g5 9.Bg3 g4 10.Nd2 cxd4 11.Nb5 Ne4 12.O-O-O Bxd2+ 13.Rxd2 Nxd2 14.Kxd2 O-O {with a good position for Black in Disconzi da Silva-Leitao, BRA-ch Sao Paulo 2001.} ) 6.g3 Bb7 7.Bg2 d6 ( 7...O-O {A recent game followed:} 8.O-O Bxc3 9.Qxc3 d6 10.b3 Nbd7 11.Rd1 Qe7 {with a typical middlegame position from the Queen's Indian Defense. Mamedyarov-Tabatabaei, Chessable Masters rapid 2023.} ) 8.O-O Nbd7 {It's no surprise that this move is a novelty. Players with Black are often terrified at the prospect of losing the bishop on b4 and capturing the knight on c3 as soon as it's no longer pinned.} ( 8...Bxc3 9.Qxc3 Nbd7 {with a typical position. White has the pair of bishops, and this should be enough for a slight advantage.} ) 9.Qc2 {Aronian decides not to try to exploit the possible defects of Black's previous move. This can be tried with 9.Nb5 or 9.Na4; the latter seems to be the most promising.} ( 9.Nb5 {is not too dangerous:} 9...c6 ( 9...d5 $2 {[%c_effect d5;square;d5;type;Mistake;persistent;true]} 10.Bf4 ) 10.a3 ( 10.Nh4 $5 {[%c_effect h4;square;h4;type;Interesting;persistent;true] is a curious computer suggestion.} ) 10...cxb5 11.axb4 ( 11.cxb5 Bc5 12.dxc5 Nxc5 {Black follows up with a5-a4, and the knight is strong on c5.} ) 11...bxc4 ( 11...a4 {is also good.} ) 12.Qxc4 O-O {with a good position.} ) ( 9.Na4 $5 {[%c_effect a4;square;a4;type;Interesting;persistent;true]} 9...d5 {Forced, otherwise the bishop is lost.} 10.Ne5 ( 10.c5 {is possible, but Black has a playable position after} 10...bxc5 11.Nxc5 Bxc5 12.Qxb7 Bd6 ) 10...O-O 11.Bg5 h6 12.Bxf6 Nxf6 13.Rac1 {with chances of a slight advantage.} ) 9...O-O {Playing with fire.} ( 9...Bxc3 {is more prudent.} ) 10.Rd1 ( 10.Na4 $1 {[%c_effect a4;square;a4;type;GreatFind;persistent;true] Now this is really the best move.} 10...d5 ( 10...Be4 11.Qd1 d5 12.c5 $1 {[%c_effect c5;square;c5;type;GreatFind;persistent;true]} 12...b5 ( 12...bxc5 {loses the bishop for insufficient compensation after} 13.a3 ) 13.a3 $1 {[%c_effect a3;square;a3;type;GreatFind;persistent;true]} 13...bxa4 14.axb4 {Black's queenside is very weak: the bishop is not well placed on e4.} ) 11.c5 b5 12.Nc3 ( 12.a3 {is also possible:} 12...bxa4 13.axb4 Bc6 14.bxa5 Rxa5 {with a slight advantage for White.} ) 12...Bxc3 13.Qxc3 b4 14.Qc2 {With more space and the pair of bishops, White has the advantage.} ) 10...Qe7 ( 10...Bxc3 ) 11.b3 c5 {I don't like the plan of advancing the central pawns. I prefer the slower} ( 11...Bxc3 12.Qxc3 Be4 ) 12.Bb2 {White prepares d4-d5.} 12...d5 $6 {[%c_effect d5;square;d5;type;Inaccuracy;persistent;true]} ( 12...Rac8 $2 {[%c_effect c8;square;c8;type;Mistake;persistent;true] doesn't fight against White's plan:} 13.d5 $1 {[%c_effect d5;square;d5;type;GreatFind;persistent;true]} 13...Bxc3 14.Qxc3 exd5 15.cxd5 Qxe2 16.Re1 Qa6 17.Nh4 {with a winning initiative.} ) ( 12...Rfe8 {is more subtle. If White tries the same, there's an extra possibility for Black.} 13.d5 Bxc3 14.Qxc3 exd5 15.cxd5 Qf8 $1 {[%c_effect f8;square;f8;type;GreatFind;persistent;true] Defending the g7-pawn and attacking e2 and d5 with an unclear game.} ) 13.cxd5 Bxc3 ( 13...exd5 {leads to a passive position with a few weaknesses, especially with the bishop on b4. White has many tempting continuations.} ) 14.d6 $1 {[%c_effect d6;square;d6;type;GreatFind;persistent;true] A typical intermediate move in similar positions. Pattern recognition is very important in chess.} 14...Qxd6 15.Qxc3 Qe7 16.dxc5 Nxc5 17.Ne5 Bxg2 18.Kxg2 {White has a clear advantage. The b2-bishop is strong and Black's queenside is weak, especially the pawn on b6.} 18...Qb7+ 19.Qf3 Nfe4 ( 19...Qxf3+ 20.Kxf3 {leads to a dream endgame for White.} ) 20.Bd4 $1 {[%c_effect d4;square;d4;type;GreatFind;persistent;true] A good plan. White gains the chance to capture the knight on c5, which will be useful in many positions.} 20...f5 $6 {[%c_effect f5;square;f5;type;Inaccuracy;persistent;true] This makes things worse.} ( 20...Rac8 21.Nc4 $1 {[%c_effect c4;square;c4;type;GreatFind;persistent;true] with a lot of pressure on the queenside.} ) ( 20...Rfd8 {is relatively best, although White is much better after} 21.Bxc5 $1 {[%c_effect c5;square;c5;type;GreatFind;persistent;true]} ( 21.Nc4 {is not so good after} 21...Rd5 $1 {[%c_effect d5;square;d5;type;GreatFind;persistent;true]} ) 21...Nxc5 22.Qxb7 Nxb7 23.Nd7 $1 {[%c_effect d7;square;d7;type;GreatFind;persistent;true]} 23...b5 24.Rac1 Rac8 25.Ne5 ) 21.Nc4 $6 {[%c_effect c4;square;c4;type;Inaccuracy;persistent;true]} ( 21.Bxc5 $1 {[%c_effect c5;square;c5;type;GreatFind;persistent;true] is stronger:} 21...bxc5 ( 21...Nxc5 {loses a pawn after} 22.Qxb7 Nxb7 23.Nd7 ) 22.Rd7 {with a clear advantage.} ) 21...a4 22.b4 Nd7 23.Kg1 $6 {[%c_effect g1;square;g1;type;Inaccuracy;persistent;true] White needed to avoid the move b6-b5.} ( 23.b5 $1 {[%c_effect b5;square;b5;type;GreatFind;persistent;true] is a nice prophylactic move. White is better after} 23...Rac8 24.Rac1 ) 23...Ndf6 $2 {[%c_effect f6;square;f6;type;Mistake;persistent;true]} ( 23...Rac8 24.Rac1 b5 $1 {[%c_effect b5;square;b5;type;GreatFind;persistent;true] This gives Black counterplay after} 25.Na5 Rxc1 26.Rxc1 Qd5 ) 24.Bxf6 $1 {[%c_effect f6;square;f6;type;GreatFind;persistent;true] Exchanging the bishop for a knight at the right time is the mark of a strong chess player.} 24...Rxf6 25.Qe3 Rc8 ( 25...b5 26.Na5 {leads to an overwhelming advantage. White's rooks will occupy the two open files.} ) 26.Rac1 $6 {[%c_effect c1;square;c1;type;Inaccuracy;persistent;true]} ( 26.Qxb6 $1 {[%c_effect b6;square;b6;type;GreatFind;persistent;true] It's not clear to me why Aronian didn't capture this pawn. The computer evaluates the position as completely winning for White.} ) 26...b5 27.Ne5 Rff8 $6 {[%c_effect f8;square;f8;type;Inaccuracy;persistent;true]} ( 27...Rxc1 {is a better chance:} 28.Qxc1 ( 28.Rxc1 Qd5 29.Nc6 Rf7 {with some hope.} ) 28...Rf8 29.Rd7 Qb6 {Black is still fighting.} ) 28.f3 ( 28.Rxc8 {is more accurate:} 28...Qxc8 ( 28...Rxc8 29.Rd7 Qb8 30.Nc6 $1 {[%c_effect c6;square;c6;type;GreatFind;persistent;true] A nice touch.} 30...Rxc6 31.Qd4 {threatening mate and Rd8, winning the queen.} ) 29.Qb6 {with a winning position: Black has too many weaknesses.} ) 28...Nf6 29.Rxc8 Qxc8 30.Rc1 Nd5 $5 {[%c_effect d5;square;d5;type;Interesting;persistent;true]} 31.Rxc8 Nxe3 32.Rc5 Rb8 33.Nc6 Rb6 {The endgame is still very difficult for Firouzja, but he soon will have some chances.} 34.Nd4 $6 {[%c_effect d4;square;d4;type;Inaccuracy;persistent;true]} ( 34.Kf2 $1 {[%c_effect f2;square;f2;type;GreatFind;persistent;true] is better:} 34...Nc4 ( 34...Nd5 35.a3 {Black is completely tied up.} ) ( 34...Nd1+ 35.Ke1 Ne3 36.Kd2 Nf1+ 37.Kd3 Nxh2 38.Ne5 g5 39.Rc1 {The knight is in trouble.} ) 35.Nd4 {This should be winning for White.} ) 34...a3 $1 {[%c_effect a3;square;a3;type;GreatFind;persistent;true]} 35.Nxb5 $6 {[%c_effect b5;square;b5;type;Inaccuracy;persistent;true]} ( 35.Kf2 {is better again:} 35...Nd5 36.Nc6 {with winning chances.} ) 35...Nd5 36.Nxa3 Rxb4 37.Nc2 Ra4 38.a3 g5 {Despite being a pawn down, Black has enough activity to achieve a draw.} 39.Kf2 h5 40.Rb5 Rc4 $2 {[%c_effect c4;square;c4;type;Mistake;persistent;true] This frees White's knight.} ( 40...g4 {is better. Black is close to a draw.} ) 41.Nb4 $1 {[%c_effect b4;square;b4;type;GreatFind;persistent;true]} 41...Nxb4 42.axb4 Kf7 43.Ke3 Rc3+ 44.Kd4 Rc2 45.Kd3 Rb2 {This is a very interesting and difficult endgame. It would be possible to write an entire article about it. Not having time for this and it not being the objective of this analysis, I hope to at least show what the critical moments are so that readers can continue their analytical journey if they so wish.} 46.Rb7+ $2 {[%c_effect b7;square;b7;type;Mistake;persistent;true] This lets the win slip after extremely precise play by Black.} ( 46.Rb8 $1 {[%c_effect b8;square;b8;type;GreatFind;persistent;true] is better. White essentially wins a tempo, as the rook is needed on b8. Black cannot wait passively.} 46...Kf6 ( 46...Kg7 47.b5 Kf7 {White has a simple winning plan in this case.} 48.b6 Kg7 49.b7 Rb1 50.Kd4 Rb2 51.f4 gxf4 52.gxf4 Rb5 53.Kc4 Rb2 54.Kc5 {followed by Kd6.} ) 47.b5 Ke5 ( 47...e5 48.b6 {and Black is not in time.} ) 48.b6 Kd6 49.b7 Kc7 50.Re8 Kxb7 51.Rxe6 {with an easy win. Black's pawns cannot be protected.} ) 46...Kf6 47.b5 Ke5 $2 {[%c_effect e5;square;e5;type;Mistake;persistent;true]} ( 47...e5 $1 {[%c_effect e5;square;e5;type;GreatFind;persistent;true] is the only way. This might lead to a drawn position after} 48.b6 g4 49.fxg4 hxg4 50.Rb8 f4 $1 {[%c_effect f4;square;f4;type;GreatFind;persistent;true]} 51.b7 Kg7 {White cannot make progress.} ) 48.b6 Kd6 49.Rb8 Kc6 50.b7 g4 ( 50...Rxb7 {The pawn endgame is easily winning:} 51.Rxb7 Kxb7 52.Kd4 Kc6 53.Ke5 Kd7 54.Kf6 ) 51.Ke3 $1 {[%c_effect e3;square;e3;type;GreatFind;persistent;true] The king marches to the kingside.} 51...gxf3 52.Kxf3 Rb6 53.Kf4 Rb4+ 54.Kg5 Re4 55.Rc8+ Kxb7 56.Rc2 {Black's king is cut, and this is the determining factor of White's victory.} 56...h4 57.gxh4 Rg4+ 58.Kf6 Rg2 ( 58...Rxh4 59.Kxe6 Rxh2 60.Kxf5 {With a winning position, as the tablebase indicates.} ) 59.h3 $1 {[%c_effect h3;square;h3;type;GreatFind;persistent;true]} ( 59.Kxe6 $2 {[%c_effect e6;square;e6;type;Mistake;persistent;true] It's never too late to misplay a winning position.} 59...f4 60.Rc4 Rxe2+ 61.Kf5 f3 {with a draw.} ) 59...f4 60.Rc4 Rxe2 61.Rxf4 e5 62.Rc4 Re3 63.h5 e4 ( 63...Rxh3 64.Kg5 {Followed by h6 and Rh4.} ) 64.Kg5 Kb6 65.h4 Kb5 66.Rc8 Re1 67.h6 1-0

[Event "Grand Chess Sinquefield Cup 2023"]
[Site "Chess.com"]
[Date "2023.11.28"]
[Round "7"]
[White "Caruana, Fabiano"]
[Black "So, Wesley"]
[Result "1-0"]
[WhiteElo "2795"]
[BlackElo "2752"]
[ECO "E42"]
[EventDate "2023.??.??"]
[Annotator "rafael"]
[PlyCount "49"]
[Beauty "8251705921553"]
[EventType "swiss"]
[EventRounds "9"]
[EventCountry "FRA"]
[TimeControl "40/5400+30:1800+30"]

{[%evp 0,49,25,25,27,24,24,24,24,20,34,18,31,39,48,43,50,29,33,25,63,66,58,66,63,63,127,127,127,93,93,107,127,131,131,131,132,132,124,124,124,124,172,187,285,307,307,307,383,388,360,388]} 
1.d4 Nf6 2.c4 e6 3.Nc3 Bb4 4.e3 c5 5.Ne2 d5 6.a3 Ba5 {A fashionable move in the Nimzo-Indian Defense. Historically 6...Bxc3 is more popular.} 7.dxc5 dxc4 8.Bd2 ( 8.Qxd8+ {Caruana played this endgame in 2023, but the position is more or less equal after} 8...Kxd8 9.Bd2 Nbd7 {Caruana-Nepomniachtchi, Zagreb SuperUnited Blitz 2023.} ) 8...Nbd7 ( 8...O-O 9.Ng3 b6 {It's possible this was the line So really wanted to play.} 10.Bxc4 ( 10.Qf3 {is not working so well because the queen is trapped on a8 in most lines.} 10...Qc7 $1 {[%c_effect c7;square;c7;type;GreatFind;persistent;true]} ) 10...bxc5 11.O-O ( 11.Qf3 {Again this is not effective:} 11...Bd7 12.Qxa8 $2 {[%c_effect a8;square;a8;type;Mistake;persistent;true]} 12...Bc6 13.Qxa7 Bb6 {The queen is trapped.} ) 11...Nbd7 12.Qc2 Bb7 {with a normal position in Grischuk-Nepomniachtchi, Amsterdam Levitov Rapid 2023.} ) 9.Ng3 b6 $2 {[%c_effect b6;square;b6;type;Mistake;persistent;true] This move is a theoretical novelty. Far from being preparation, the move is probably the result of So confusing his analysis.} ( 9...Nxc5 10.Bxc4 Bc7 {is better, with only a slight advantage for White in Wojtaszek-Moranda, POL-ch Kruszwica 2022.} ) ( 9...Ne5 {is also not good, since there's not enough compensation after} 10.Bxc4 Nxc4 11.Qa4+ Bd7 12.Qxc4 ) 10.Qf3 $1 {[%c_effect f3;square;f3;type;GreatFind;persistent;true] Played after long deliberation, this is the most accurate reaction.} ( 10.cxb6 {This is not enough, since Black has good compensation for the pawn in more than one way.} 10...Ba6 ( 10...Nxb6 {is also possible:} 11.Bxc4 Nxc4 12.Qa4+ Qd7 13.Qxc4 Bb7 ) ) ( 10.c6 Ne5 {is also not very convincing.} ) 10...Rb8 {So also took a long time to play this move. He probably realized something went wrong.} ( 10...Ba6 $6 {[%c_effect a6;square;a6;type;Inaccuracy;persistent;true]} 11.b4 $1 {[%c_effect b4;square;b4;type;GreatFind;persistent;true] This is the point of White's play. Black loses a piece for insufficient compensation after} 11...cxb3 12.Bxa6 ) ( 10...Nd5 $6 {[%c_effect d5;square;d5;type;Inaccuracy;persistent;true] is also not good after} 11.Bxc4 {with a clear advantage for White.} ) 11.c6 Ne5 12.Qf4 Bxc3 $2 {[%c_effect c3;square;c3;type;Mistake;persistent;true] This is the equivalent of resigning the game.} ( 12...Nxc6 {is much more stubborn.} 13.Qxc4 Bb7 14.b4 b5 {Black still has some hopes with a pawn down.} 15.Nxb5 ( 15.Qd3 $5 {[%c_effect d3;square;d3;type;Interesting;persistent;true] is also good, forcing a queen exchange.} ) ) 13.Bxc3 Nxc6 {Black's position is painful to watch. White has the pair of bishops, an active queen, and many ways to win the game.} 14.Rd1 {Caruana finishes the game with computer-like precision.} ( 14.Bxc4 {is simple and good.} 14...O-O 15.Rd1 Qe7 16.Bb5 $1 {[%c_effect b5;square;b5;type;GreatFind;persistent;true]} 16...Bb7 17.Bxc6 Bxc6 18.Bb4 {winning the exchange and the game.} ) ( {Even} 14.Qg5 {is interesting.} ) 14...Qe7 15.Bxc4 b5 ( 15...O-O 16.Bb5 $1 {[%c_effect b5;square;b5;type;GreatFind;persistent;true] wins the exchange:} 16...Bb7 17.Bxc6 Bxc6 18.Bb4 ) ( 15...e5 16.Qf3 {leads to an easy win, for instance:} 16...Qc5 17.Ne4 $1 {[%c_effect e4;square;e4;type;GreatFind;persistent;true] and Black can resign.} ) 16.Bxf6 Qxf6 ( 16...gxf6 17.Ne4 {with a decisive attack. A pretty line is:} 17...bxc4 18.Nxf6+ Kf8 19.Qh6# ) 17.Qd6 e5 18.Bxf7+ $1 {[%c_effect f7;square;f7;type;GreatFind;persistent;true] The final touch.} 18...Kxf7 ( 18...Qxf7 19.Qxc6+ Bd7 20.Qd6 {The e5-pawn falls as well.} ) 19.Qc7+ Qe7 ( 19...Kg6 20.Rd6 $1 {[%c_effect d6;square;d6;type;GreatFind;persistent;true]} ) 20.Qxc6 Bb7 ( 20...Rb6 21.Qd5+ {also brings no hope, although it can prolong the resistance a little bit.} ) 21.Qxb5 Bxg2 22.Qc4+ Kf8 23.Nf5 Qf6 24.Qc5+ Kg8 25.Qc7 {Nerves certainly played a role in this rare, crushing defeat for So. He is playing not only for tournament victory but also for a spot in the next Candidates cycle.} ( 25.Qc7 Re8 26.Nd6 {With the material advantage and a decisive attack.} ) 1-0